fUST/lending_fUST_20250827
["ID","MTS","AMOUNT","RATE_DAILY","PERIOD"]
[381498608,1756236127337,-10000.01,0.00027312,2]
[381498609,1756236127611,-10000.01,0.00027312,2]
[381498610,1756236127894,-10000.01,0.00027312,2]
[381498611,1756236129016,-186.5637155,0.00027311,2]
[381498612,1756236132128,-156.96,0.00027311,2]
[381498613,1756236134595,-170.44122971,0.00027311,2]
[381498614,1756236136591,-222.68683412,0.00027311,2]
[381498615,1756236140208,-208.64101696,0.00027311,2]
[381498616,1756236143223,-254.70720371,0.00027311,2]
[381498617,1756236143250,-188.27676641,0.00027312,2]
[381498618,1756236147350,-366.1065889,0.00027312,2]
[381498619,1756236149432,-404.64186518,0.00027312,2]
[381498620,1756236150917,-300.0,0.00027312,2]
[381498621,1756236152361,-350.2375501,0.00027312,2]
[381498622,1756236154409,-300.0,0.00027312,2]
[381498623,1756236158026,-151.0,0.00027312,2]
[381498624,1756236164618,-199.0,0.00027312,2]
[381498625,1756236167162,-165.86420085,0.00027312,2]
[381498626,1756236169959,-199.0,0.00027312,2]
[381498627,1756236172577,-242.91060126,0.00027312,2]
[381498628,1756236174104,-243.17039191,0.00027312,2]
[381498629,1756236177433,-199.0,0.00027312,2]
[381498630,1756236185345,-300.0,0.00027311,2]
[381498631,1756236185368,-49.72620628,0.00027312,2]
[381498632,1756236187350,-190.92246214,0.00027312,2]
[381498633,1756236190518,-183.47,0.00027312,2]
[381498634,1756236194766,-207.07753786,0.00027312,2]
[381498635,1756236197434,-152.0,0.00027312,2]
[381498636,1756236200010,-168.29647525,0.00027312,2]
[381498637,1756236203054,-168.94994048,0.00027312,2]
[381498638,1756236205245,-468.37474262,0.00027312,2]
[381498639,1756236207736,-152.0,0.00027312,2]
[381498640,1756236209861,-199.0,0.00027312,2]
[381498641,1756236213037,-192.0,0.00027312,2]
[381498642,1756236215167,-216.15220916,0.00027312,2]
[381498643,1756236216656,-188.0,0.00027312,2]
[381498659,1756236219741,-269.0988277,0.00027312,2]
[381498660,1756236223261,-155.84,0.00027312,2]
[381498661,1756236224693,-460.0,0.00027312,2]
[381498662,1756236227729,-225.71780587,0.00027312,2]
[381498663,1756236229669,-199.0,0.00027312,2]
[381498664,1756236231889,-317.28364551,0.00027312,2]
[381498665,1756236234498,-215.39313076,0.00027312,2]
[381498666,1756236237722,-165.74,0.00027312,2]
[381498667,1756236239932,-156.96,0.00027312,2]
[381498668,1756236241772,-199.0,0.00027312,2]
[381498669,1756236244358,-257.01288172,0.00027311,2]
[381498670,1756236247005,-42.98711828,0.00027311,2]
[381498671,1756236247027,-133.82030613,0.00027312,2]
[381498672,1756236249012,-310.90255367,0.00027312,2]
[381498673,1756236254113,-298.63649048,0.00027312,2]
[381498674,1756236258380,-290.73811895,0.00027312,2]
[381498675,1756236260769,-277.17011412,0.00027312,2]
[381498676,1756236262833,-373.34874391,0.00027312,2]
[381498677,1756236266073,-160.75679804,0.00027312,2]
[381498678,1756236268650,-304.79226468,0.00027312,2]
[381498679,1756236272375,-152.0,0.00027312,2]
[381498680,1756236272931,10000.01,0.000271,7]
[381498681,1756236272953,10000.01,0.000271,7]
[381498682,1756236272977,10000.01,0.000271,7]
[381498683,1756236273000,9635.19856002,0.000271,7]
[381498684,1756236274516,-151.16803761,0.00027312,2]
[381498685,1756236277039,-155.84,0.00027312,2]
[381498686,1756236279638,-190.644576,0.00027312,2]
[381498687,1756236280499,364.81143998,0.000271,2]
[381498688,1756236280523,3113.02410434,0.000271,2]
[381498689,1756236283184,-173.48406566,0.00027312,2]
[381498690,1756236284782,1931.09727477,0.000199,2]
[381498691,1756236284894,1931.09727469,0.00021627,2]
[381498692,1756236285013,1931.09727469,0.00023353,2]
[381498693,1756236285165,1093.69407151,0.0002508,2]
[381498694,1756236285191,837.40320318,0.0002508,2]
[381498695,1756236285367,1931.09727469,0.00026806,6]
[381498696,1756236285991,-165.71,0.00027112,2]
[381498697,1756236288011,-18.820313,0.00027112,2]
[381498698,1756236288032,-204.57689282,0.00027312,2]
[381498699,1756236288876,312.03953109,0.000271,2]
[381498700,1756236291448,-251.02283608,0.00027312,2]
[381498701,1756236295132,-152.0,0.00027312,2]
[381498702,1756236296655,5000.0,0.000271,2]
[381498703,1756236299386,-215.47372884,0.00027312,2]
[381498704,1756236300915,-184.4719823,0.00027312,2]
[381498705,1756236303844,-207.84426583,0.00027312,2]
[381498706,1756236308728,-400.79212809,0.00027312,2]
[381498707,1756236311923,-160.0,0.00027312,2]
[381498708,1756236313379,734.39858517,0.000271,2]
[381498709,1756236316086,-199.0,0.00027312,2]
[381498710,1756236319513,-208.01876055,0.00027312,2]
[381498711,1756236323198,-196.57057927,0.00027312,2]
[381498712,1756236324641,-187.21318817,0.00027312,2]
[381498713,1756236327156,-230.22068723,0.00027312,2]
[381498714,1756236329720,383.78376744,0.000271,2]
[381498715,1756236332969,-217.0,0.00027312,2]
[381498716,1756236334487,-188.0,0.00027312,2]
[381498717,1756236339614,-337.32005952,0.00027312,2]
[381498718,1756236343277,-390.35201162,0.00027312,2]
[381498719,1756236343305,-273.62,0.00027312,7]
[381498720,1756236343327,-159.0,0.00027576,120]
[381498721,1756236343352,-159.0,0.00028213,2]
[381498722,1756236343377,-300.0,0.00028213,2]
[381498723,1756236343403,-300.0,0.00028213,2]
[381498724,1756236343437,-300.0,0.00028213,2]
[381498725,1756236343465,-611.0,0.00028213,2]
[381498726,1756236343493,-2692.71250162,0.00028214,2]
[381498728,1756236400546,209.289304,0.00025778,2]
[381498729,1756236400927,209.289304,0.00026044,2]
[381498730,1756236430114,-182.41,0.00028214,30]
[381498731,1756236430133,-441.11784528,0.00028214,2]
[381498732,1756236433108,382.70903043,0.000271,2]
[381498733,1756236433130,807.2784535,0.000271,2]
[381498734,1756236462627,1866.96557822,0.000199,2]
[381498735,1756236462766,1866.96557794,0.00021627,2]
[381498736,1756236462877,1866.96557794,0.00023353,2]
[381498737,1756236462999,1866.96557794,0.0002508,2]
[381498738,1756236463145,1724.86923446,0.00026806,6]
[381498739,1756236463173,142.09634348,0.00026806,6]
[381498755,1756236498011,1341.0,0.000271,2]
[381498757,1756236508218,204.41350146,0.000176,2]
[381498758,1756236514179,178.18435062,0.00022,2]
[381498759,1756236519700,234.11131208,0.00024,60]
[381498760,1756236519944,364.97170803,0.0002,2]
[381498761,1756236520409,7677.32912781,0.0002,2]
[381498762,1756236520433,10000.01,0.0002,2]
[381498763,1756236520454,10000.01,0.0002,2]
[381498764,1756236520476,9977.32615719,0.0002,2]
[381498765,1756236521465,159.25216296,0.0002,2]
[381498766,1756236521488,22.68384281,0.0002,2]
[381498767,1756236521511,3263.23389236,0.0002,2]
[381498768,1756236521537,1704.06372877,0.00024,2]
[381498769,1756236525800,150.0,0.00025,2]
[381498770,1756236526293,4882.71237887,0.00024,2]
[381498771,1756236526314,3647.39486592,0.00024,2]
[381498772,1756236528314,278.99542258,0.000225,2]
[381498773,1756236528576,6073.6197115,0.0002465,2]
[381498774,1756236528599,10000.01,0.0002465,2]
[381498775,1756236528620,10000.01,0.0002465,2]
[381498776,1756236528644,10000.01,0.0002465,2]
[381498777,1756236528666,4037.25663109,0.0002465,2]
[381498778,1756236528705,505.29454774,0.0002465,2]
[381498779,1756236528882,456.7293854,0.00024,2]
[381498780,1756236529522,1452.59415123,0.0002,2]
[381498781,1756236530756,3548.13528454,0.00019063,2]
[381498782,1756236530780,10000.01,0.00019063,2]
[381498783,1756236530802,10000.01,0.00019063,2]
[381498784,1756236530825,10000.01,0.00019063,2]
[381498785,1756236530848,8378.38111894,0.00019063,2]
[381498790,1756236551115,-1080.07556,0.00027174,2]
[381498791,1756236551345,-407.0187605,0.00027283,2]
[381498792,1756236551367,-376.39720582,0.00028,10]
[381498793,1756236551388,-28.01270773,0.00028,10]
[381498794,1756236551494,1621.62888106,0.000271,2]
[381498795,1756236551518,3378.37111894,0.000271,2]
[381498796,1756236559253,288.09008906,0.00027882,2]
[381498797,1756236588936,236.598106,0.000271,7]
[381498798,1756236588961,1385.03077506,0.000271,7]
[381498799,1756236621807,2070.67,0.00026685,2]
[381498800,1756236630423,178.0,0.0002499,120]
[381498829,1756236631912,178.0,0.0002624,120]
[381498836,1756236631968,-832.0,0.00027931,2]
[381498838,1756236631978,-5000.0,0.00027932,2]
[381498840,1756236631988,-348.38449809,0.00028,10]
[381498842,1756236631997,-717.0231899,0.00028214,2]
[381498844,1756236632007,-500.0,0.00028373,5]
[381498846,1756236632016,-500.0,0.00028373,5]
[381498848,1756236632026,-300.0,0.00028382,2]
[381498850,1756236632035,-300.0,0.00028382,2]
[381498852,1756236632044,-300.0,0.00028382,2]
[381498854,1756236632054,-1200.0,0.00028383,2]
[381498856,1756236632063,-500.0,0.00028383,2]
[381498858,1756236632072,-500.0,0.00028383,2]
[381498860,1756236632082,-414.62400697,0.00028383,2]
[381498862,1756236632091,-34992.5562092,0.00028384,2]
[381498863,1756236632100,-3471.99309277,0.00028432,2]
[381498864,1756236632110,-617.85,0.00028522,10]
[381498865,1756236632120,-514.88,0.00028522,10]
[381498866,1756236632129,-262.38583999,0.00028531,2]
[381498867,1756236632138,-500.0,0.00028531,2]
[381498868,1756236632148,-500.0,0.00028531,2]
[381498869,1756236632157,-500.0,0.00028531,2]
[381498870,1756236632167,-500.0,0.00028531,2]
[381498871,1756236632176,-500.0,0.00028531,2]
[381498872,1756236632186,-500.0,0.00028531,2]
[381498873,1756236632195,-500.0,0.00028531,2]
[381498874,1756236632205,-500.0,0.00028531,2]
[381498875,1756236632214,-500.0,0.00028531,2]
[381498876,1756236632225,-500.0,0.00028531,2]
[381498877,1756236632235,-500.0,0.00028531,2]
[381498878,1756236632244,-432.8450616,0.00028531,2]
[381498879,1756236632254,-500.0,0.00028531,2]
[381498880,1756236632263,-500.0,0.00028531,2]
[381498881,1756236632273,-500.0,0.00028531,2]
[381498882,1756236632283,-500.0,0.00028531,2]
[381498883,1756236632292,-500.0,0.00028531,2]
[381498884,1756236632302,-600.0,0.00028531,2]
[381498885,1756236632312,-500.0,0.00028531,2]
[381498886,1756236632321,-155.0,0.00028532,2]
[381498887,1756236632330,-50000.0,0.00028532,2]
[381498888,1756236632340,-2770.61,0.000286,7]
[381498889,1756236632350,-199.0,0.00028855,120]
[381498890,1756236632366,-1000.0,0.00028921,5]
[381498891,1756236632376,-674.90949702,0.00028921,5]
[381498892,1756236632386,-159.0,0.00028955,120]
[381498893,1756236632396,-3979.95633364,0.0002899,2]
[381498894,1756236632406,-160.0,0.00029,10]
[381498895,1756236632416,-151.0,0.00029031,2]
[381498896,1756236632427,-191.0,0.00029031,2]
[381498897,1756236632442,-221.7602304,0.00029086,2]
[381498898,1756236632452,-417.15472785,0.00029242,2]
[381498899,1756236632461,-151.47,0.00029256,15]
[381498900,1756236632472,-151.47,0.00029258,15]
[381498901,1756236632482,-12704.43797926,0.00029304,2]
[381498902,1756236632492,-151.48,0.00029356,15]
[381498903,1756236632502,-160.0,0.00029361,2]
[381498904,1756236632512,-160.0,0.00029361,2]
[381498905,1756236632523,-160.0,0.00029431,2]
[381498906,1756236632535,-2004.23388295,0.0002945,2]
[381498907,1756236632545,-500.0,0.00029463,2]
[381498908,1756236632555,-18860.7265726,0.00029463,2]
[381498909,1756236632564,-1527.24745774,0.00029463,2]
[381498910,1756236632574,-292.58905785,0.00029468,5]
[381498911,1756236632584,-5461.34738394,0.00029473,2]
[381498912,1756236632594,-160.0,0.00029485,2]
[381498913,1756236632604,-1561.22,0.00029491,3]
[381498914,1756236632614,-780.61,0.00029491,3]
[381498915,1756236632624,-390.31,0.00029491,3]
[381498916,1756236632634,-195.15,0.00029491,3]
[381498917,1756236632644,-299.57,0.00029491,3]
[381498918,1756236632654,-284.44,0.00029491,3]
[381498919,1756236632664,-853.37,0.00029491,3]
[381498920,1756236632673,-771.10937979,0.00029491,2]
[381498929,1756236637706,-199.0,0.00028755,120]
[381498930,1756236637716,-500.0,0.00029256,15]
[381498931,1756236637726,-36950.34376531,0.00029491,2]
[381498932,1756236637736,-3054.49491548,0.00029491,2]
[381498933,1756236637746,-68400.8930509,0.00029501,2]
[381498934,1756236637755,-7124.0675811,0.00029501,2]
[381498935,1756236637765,-160.0,0.00029523,2]
[381498936,1756236637774,-160.0,0.00029523,2]
[381498937,1756236637784,-469.718066,0.00029542,2]
[381498938,1756236637793,-150885.812581,0.00029549,2]
[381498939,1756236637803,-12217.9796619,0.00029549,2]
[381498940,1756236637812,-151.0,0.00029559,7]
[381498941,1756236637824,-151.0,0.00029559,7]
[381498942,1756236637834,-151.0,0.00029559,7]
[381498943,1756236637843,-151.0,0.00029559,7]
[381498944,1756236637853,-151.0,0.00029559,7]
[381498945,1756236637862,-151.0,0.00029559,7]
[381498947,1756236637872,-151.0,0.00029559,7]
[381498948,1756236637881,-151.0,0.00029559,7]
[381498949,1756236637891,-151.0,0.00029559,7]
[381498951,1756236637900,-151.0,0.00029559,7]
[381498952,1756236637910,-151.0,0.00029559,7]
[381498953,1756236637920,-151.0,0.00029559,7]
[381498954,1756236638151,-151.0,0.00029559,7]
[381498955,1756236638161,-183.323327,0.00029559,7]
[381498956,1756236638170,-151.0,0.00029559,7]
[381498957,1756236638179,-151.0,0.00029559,7]
[381498958,1756236638189,-151.0,0.00029559,7]
[381498959,1756236638199,-399.332362,0.00029559,7]
[381498960,1756236638208,-151.0,0.00029559,7]
[381498961,1756236638217,-399.332362,0.00029559,7]
[381498962,1756236638227,-399.332362,0.00029559,7]
[381498963,1756236638237,-399.332362,0.00029559,7]
[381498964,1756236638246,-151.0,0.00029559,7]
[381498965,1756236638256,-151.0,0.00029559,7]
[381498966,1756236638265,-151.0,0.00029559,7]
[381498967,1756236638274,-151.0,0.00029559,7]
[381498968,1756236638283,-151.0,0.00029559,7]
[381498969,1756236638293,-370000.0,0.00029559,2]
[381498970,1756236638303,-559.99372576,0.00029573,5]
[381498971,1756236638312,-511.00425077,0.00029573,5]
[381498972,1756236638321,-500.0,0.00029573,5]
[381498973,1756236638331,-500.0,0.00029573,5]
[381498974,1756236638341,-502.26575725,0.00029573,2]
[381498975,1756236638351,-500.0,0.00029573,5]
[381498976,1756236638367,-500.0,0.00029573,5]
[381498977,1756236638376,-500.0,0.00029573,5]
[381498978,1756236638385,-500.0,0.00029573,5]
[381498979,1756236638395,-500.0,0.00029573,5]
[381498980,1756236638406,-500.0,0.00029573,5]
[381498981,1756236638415,-501.4935268,0.00029573,5]
[381498982,1756236638424,-500.0,0.00029573,5]
[381498983,1756236638435,-500.0,0.00029573,5]
[381498984,1756236638444,-500.0,0.00029573,5]
[381498985,1756236638453,-173.99268608,0.00029573,5]
[381498986,1756236638463,-500.57010825,0.00029573,5]
[381498987,1756236638473,-500.0,0.00029573,5]
[381498988,1756236638482,-500.0,0.00029573,5]
[381498989,1756236638492,-500.0,0.00029573,5]
[381498990,1756236638502,-574.80092958,0.00029573,5]
[381498991,1756236638511,-502.91664097,0.00029573,5]
[381498992,1756236638521,-500.0,0.00029573,5]
[381498993,1756236638531,-446.29060795,0.00029573,5]
[381498994,1756236638540,-522.7877542,0.00029573,5]
[381498995,1756236638549,-500.0,0.00029573,5]
[381498996,1756236638559,-500.0,0.00029573,5]
[381498997,1756236638568,-500.0,0.00029573,5]
[381498998,1756236638577,-456.84374954,0.00029573,5]
[381498999,1756236638587,-500.0,0.00029573,5]
[381499000,1756236638596,-500.0,0.00029573,5]
[381499001,1756236638605,-500.0,0.00029573,5]
[381499002,1756236638615,-500.0,0.00029573,5]
[381499003,1756236638624,-500.0,0.00029573,5]
[381499004,1756236638633,-500.0,0.00029573,5]
[381499005,1756236638643,-500.0,0.00029573,5]
[381499006,1756236638651,-500.0,0.00029573,5]
[381499007,1756236638661,-500.0,0.00029573,5]
[381499008,1756236638671,-18860.7265726,0.0002959,2]
[381499009,1756236638680,-1527.24745774,0.0002959,2]
[381499010,1756236638689,-10581.66,0.000296,2]
[381499011,1756236638698,-160.0,0.000296,7]
[381499012,1756236638707,-160.0,0.000296,7]
[381499013,1756236638716,-376.39720582,0.000296,7]
[381499014,1756236638726,-216.09257821,0.000296,7]
[381499015,1756236638736,-46155.42,0.000296,7]
[381499016,1756236638745,-3059.06,0.000296,7]
[381499017,1756236638755,-160.0,0.00029668,2]
[381499018,1756236638764,-151.0,0.0002967,2]
[381499019,1756236638773,-1000.0,0.00029769,2]
[381499020,1756236638782,-584.14,0.00029769,2]
[381499021,1756236638792,-198.0,0.00029839,120]
[381499022,1756236638801,-155.44224847,0.00029985,2]
[381499023,1756236638810,-1527.24745774,0.00030111,2]
[381499024,1756236638820,-500.0,0.00030121,5]
[381499025,1756236638830,-1000.0,0.00030121,5]
[381499026,1756236638839,-1000.0,0.00030121,5]
[381499027,1756236638855,-1000.0,0.00030121,5]
[381499028,1756236638866,-1000.0,0.00030121,5]
[381499029,1756236638875,-1000.0,0.00030121,5]
[381499030,1756236638884,-648.78561667,0.00030121,5]
[381499031,1756236638901,-500.0,0.00030121,5]
[381499032,1756236638910,-498.43472966,0.00030121,5]
[381499033,1756236638920,-1053.57827115,0.00030121,5]
[381499034,1756236638930,-1000.0,0.00030121,5]
[381499035,1756236638939,-500.0,0.00030121,5]
[381499036,1756236638949,-278.65759755,0.00030121,5]
[381499037,1756236638958,-500.0,0.00030121,5]
[381499038,1756236638967,-1002.96478376,0.00030121,5]
[381499039,1756236638977,-1000.0,0.00030121,5]
[381499040,1756236638986,-1000.0,0.00030121,5]
[381499041,1756236638995,-1000.0,0.00030121,5]
[381499042,1756236639005,-500.0,0.00030259,5]
[381499043,1756236639014,-154.65831,0.00030327,6]
[381499044,1756236639024,-197.9255827,0.00030365,2]
[381499045,1756236639035,-160.0,0.00030408,2]
[381499046,1756236639044,-2770.61,0.000305,7]
[381499047,1756236639053,-184.530313,0.00030536,2]
[381499048,1756236639062,-151.0,0.000306,14]
[381499049,1756236639072,-168.0,0.00030618,2]
[381499050,1756236639081,-420.0,0.00030641,2]
[381499051,1756236639091,-420.0,0.00030641,2]
[381499052,1756236639100,-420.0,0.00030641,2]
[381499053,1756236639109,-1123.0,0.00030642,2]
[381499054,1756236639119,-1509.72641863,0.00030668,5]
[381499055,1756236639128,-1500.0,0.00030668,5]
[381499056,1756236639137,-1500.0,0.00030668,5]
[381499057,1756236639146,-1500.0,0.00030668,5]
[381499058,1756236639156,-1500.0,0.00030668,5]
[381499059,1756236639165,-509.06738748,0.00030668,5]
[381499060,1756236639175,-1500.0,0.00030668,5]
[381499061,1756236639185,-1500.0,0.00030668,5]
[381499062,1756236639195,-1000.0,0.00030807,5]
[381499063,1756236639204,-3471.99309275,0.00030814,2]
[381499064,1756236639213,-3122.44,0.00030861,3]
[381499065,1756236639222,-1561.22,0.00030861,3]
[381499066,1756236639232,-780.62,0.00030861,3]
[381499067,1756236639242,-390.3,0.00030861,3]
[381499068,1756236639252,-599.14,0.00030861,3]
[381499069,1756236639261,-568.88,0.00030861,3]
[381499070,1756236639270,-376.39720582,0.00030861,3]
[381499071,1756236639280,-216.09257821,0.00030861,3]
[381499072,1756236639289,-151.0,0.00030861,7]
[381499073,1756236639298,-151.0,0.00030861,7]
[381499074,1756236639308,-711.22,0.00030919,3]
[381499075,1756236639317,-160.0,0.00030919,3]
[381499076,1756236639326,-160.0,0.00030919,3]
[381499077,1756236639335,-160.0,0.00030919,3]
[381499079,1756236639345,-260.0,0.00030956,2]
[381499080,1756236639356,-152.0,0.00031,120]
[381499081,1756236639367,-1000.0,0.00031065,2]
[381499082,1756236639376,-1000.0,0.00031065,2]
[381499083,1756236639386,-1000.0,0.00031065,2]
[381499084,1756236639395,-1000.0,0.00031065,2]
[381499085,1756236639405,-151.0,0.00031065,2]
[381499086,1756236639415,-1000.0,0.00031065,2]
[381499087,1756236639424,-177.50560328,0.00031065,2]
[381499088,1756236639434,-1000.0,0.00031065,2]
[381499090,1756236639445,-1000.0,0.00031065,2]
[381499093,1756236639457,-1000.0,0.00031065,2]
[381499096,1756236639470,-1000.0,0.00031065,2]
[381499098,1756236639480,-1000.0,0.00031065,2]
[381499099,1756236639490,-1000.0,0.00031065,2]
[381499100,1756236639499,-1000.0,0.00031065,2]
[381499102,1756236639508,-1000.0,0.00031065,2]
[381499103,1756236639517,-665.98317863,0.00031065,2]
[381499104,1756236639530,-151.0,0.00031065,7]
[381499105,1756236639540,-151.0,0.00031065,7]
[381499106,1756236639552,-151.0,0.00031065,7]
[381499107,1756236639563,-151.0,0.00031065,7]
[381499108,1756236639572,-153.868672,0.00031065,7]
[381499109,1756236639581,-151.0,0.00031065,7]
[381499110,1756236639591,-151.0,0.00031065,7]
[381499111,1756236639601,-151.0,0.00031065,7]
[381499112,1756236639610,-151.0,0.00031065,7]
[381499113,1756236639619,-151.0,0.00031065,7]
[381499114,1756236639629,-151.0,0.00031065,7]
[381499115,1756236639639,-151.0,0.00031065,7]
[381499117,1756236639648,-151.0,0.00031065,7]
[381499118,1756236639657,-151.0,0.00031065,7]
[381499120,1756236639667,-183.467516,0.00031065,7]
[381499122,1756236639676,-399.332362,0.00031065,7]
[381499123,1756236639686,-399.332362,0.00031065,7]
[381499124,1756236639695,-152.815395,0.00031065,7]
[381499125,1756236639704,-399.332362,0.00031065,7]
[381499126,1756236639714,-399.332362,0.00031065,7]
[381499127,1756236639723,-151.0,0.00031065,7]
[381499128,1756236639733,-1527.24745774,0.0003109,2]
[381499129,1756236639742,-168.0,0.00031091,2]
[381499130,1756236639751,-2004.23388294,0.00031097,2]
[381499131,1756236639760,-10581.66,0.000311,2]
[381499132,1756236639769,-151.0,0.000312,7]
[381499133,1756236639779,-307.780374,0.000312,7]
[381499134,1756236639788,-307.780374,0.000312,7]
[381499135,1756236639797,-151.785022,0.000312,7]
[381499136,1756236639807,-151.0,0.000312,7]
[381499137,1756236639816,-307.780374,0.000312,7]
[381499138,1756236639826,-307.780374,0.000312,7]
[381499139,1756236639836,-154.037772,0.000312,7]
[381499140,1756236639845,-151.0,0.000312,7]
[381499141,1756236639854,-151.0,0.000312,7]
[381499142,1756236639864,-151.0,0.000312,7]
[381499143,1756236639873,-187.409123,0.000312,7]
[381499144,1756236639882,-187.409123,0.000312,7]
[381499145,1756236639892,-187.409123,0.000312,7]
[381499146,1756236639901,-187.409123,0.000312,7]
[381499147,1756236639911,-151.0,0.000312,7]
[381499148,1756236639920,-151.0,0.000312,7]
[381499149,1756236639929,-151.0,0.000312,7]
[381499150,1756236639938,-261.438781,0.000312,7]
[381499151,1756236639947,-185.617661,0.000312,7]
[381499152,1756236639956,-151.0,0.000312,7]
[381499153,1756236639966,-185.617661,0.000312,7]
[381499154,1756236639975,-151.0,0.000312,7]
[381499155,1756236639984,-185.617661,0.000312,7]
[381499156,1756236639993,-185.617661,0.000312,7]
[381499157,1756236640004,-46155.42,0.000312,7]
[381499158,1756236640013,-3059.06,0.000312,7]
[381499159,1756236640022,-151.0,0.000312,7]
[381499160,1756236640032,-151.0,0.000312,7]
[381499161,1756236640041,-151.0,0.000312,7]
[381499162,1756236640051,-151.0,0.000312,7]
[381499163,1756236640060,-151.0,0.000312,7]
[381499164,1756236640069,-151.0,0.000312,7]
[381499165,1756236640079,-151.0,0.000312,7]
[381499166,1756236640089,-151.0,0.000312,7]
[381499167,1756236640098,-151.0,0.000312,7]
[381499168,1756236640108,-151.0,0.000312,7]
[381499169,1756236640117,-151.0,0.000312,7]
[381499170,1756236640128,-151.0,0.000312,7]
[381499171,1756236640138,-151.0,0.00031216,7]
[381499172,1756236640147,-151.0,0.00031216,7]
[381499173,1756236640156,-151.0,0.00031216,7]
[381499174,1756236640166,-151.0,0.00031216,7]
[381499175,1756236640176,-1870.8673848,0.00031216,5]
[381499176,1756236640186,-2000.0,0.00031216,5]
[381499177,1756236640195,-2000.0,0.00031216,5]
[381499178,1756236640205,-292.14363601,0.00031216,5]
[381499179,1756236640214,-1000.0,0.00031216,5]
[381499180,1756236640233,-500.0,0.00031273,5]
[381499181,1756236640244,-500.0,0.00031273,5]
[381499182,1756236640254,-500.0,0.00031273,5]
[381499183,1756236640264,-1527.24745774,0.0003129,2]
[381499184,1756236640274,-151.0,0.000313,7]
[381499185,1756236640284,-151.0,0.000313,7]
[381499186,1756236640294,-151.0,0.000313,7]
[381499187,1756236640303,-151.0,0.000313,7]
[381499188,1756236640313,-151.0,0.000313,7]
[381499189,1756236640323,-151.0,0.000313,7]
[381499190,1756236640333,-151.0,0.000313,7]
[381499191,1756236640343,-151.0,0.000313,7]
[381499192,1756236640353,-151.0,0.000313,7]
[381499193,1756236640368,-151.0,0.000313,7]
[381499194,1756236640377,-151.0,0.000313,7]
[381499195,1756236640387,-151.0,0.000313,7]
[381499196,1756236640397,-151.0,0.000313,7]
[381499197,1756236640407,-151.0,0.000313,7]
[381499198,1756236640416,-151.0,0.000313,7]
[381499199,1756236640426,-151.0,0.000313,7]
[381499200,1756236640437,-160.0,0.000313,7]
[381499201,1756236640447,-376.39720582,0.000313,7]
[381499202,1756236640457,-168.0,0.00031315,2]
[381499203,1756236640467,-1006.64297383,0.00031355,5]
[381499204,1756236640476,-151.0,0.000314,17]
[381499205,1756236640486,-250.0,0.00031433,2]
[381499206,1756236640495,-360.0,0.00031504,2]
[381499207,1756236640505,-168.0,0.00031551,2]
[381499208,1756236640514,-168.0,0.00031572,2]
[381499209,1756236640524,-151.0,0.00031755,7]
[381499210,1756236640534,-152.303452,0.00031755,7]
[381499211,1756236640543,-151.0,0.00031755,7]